bitfinex-derivatives/quotes_SOLF0:USTF0_20250311
["timestamp","ask_amount","ask_price","bid_price","bid_amount"]
[1741719874987,0.05283682,127.2,127.17,0.05081499]
[1741719875376,0.05283682,127.2,127.18,7.8638]
[1741719877090,0.05283682,127.2,127.17,0.05081499]
[1741719877685,0.05283682,127.2,127.19,7.8636]
[1741719877991,0.05283682,127.2,127.18,38.54]
[1741719878490,7.91613682,127.2,127.18,38.54]
[1741719878787,0.05283682,127.2,127.18,38.54]
[1741719880089,0.05283682,127.2,127.19,7.8636]
[1741719880285,0.05283682,127.2,127.18,38.54]
[1741719880689,7.91613682,127.2,127.18,46.4042]
[1741719880891,0.05283682,127.2,127.18,38.54]
[1741719881087,19.64,127.23,127.18,38.54]
[1741719881282,19.64,127.23,127.22,7.8618]
[1741719881486,42.14,127.28,127.22,7.8618]
[1741719881690,32.92197374,127.27,127.18,42.3985]
[1741719881986,36.77347374,127.27,127.18,42.3985]
[1741719882191,4.0248,127.26,127.18,42.3985]
[1741719882392,7.8613,127.23,127.21,0.06019636]
[1741719882790,18.08130205,127.24,127.21,0.06019636]
[1741719883394,0.05714394,127.24,127.21,0.06019636]
[1741719884394,0.05714394,127.24,127.21,7.92249636]
[1741719884695,0.05714394,127.24,127.21,0.06019636]
[1741719884991,0.05714394,127.24,127.22,38.54]
[1741719885588,0.05714394,127.24,127.21,0.06019636]
[1741719886191,7.8618,127.22,127.21,0.06019636]
[1741719886496,0.05714394,127.24,127.21,0.06019636]
[1741719886695,7.91814394,127.24,127.21,0.06019636]
[1741719886895,0.05714394,127.24,127.21,0.06019636]
[1741719887090,0.05714394,127.24,127.15,3.8804]
[1741719887091,28.88391027,127.24,127.15,3.8804]
[1741719887302,28.82676633,127.24,127.16,38.54]
[1741719887594,4.1784,127.23,127.15,3.8804]
[1741719887797,4.1784,127.23,127.17,7.8643]
[1741719888000,4.1784,127.23,127.16,38.54]
[1741719888206,17.76,127.26,127.16,38.54]
[1741719888399,0.05315301,127.21,127.18,0.05796243]
[1741719888593,0.05315301,127.21,127.19,7.8632]
[1741719888795,0.05315301,127.21,127.18,0.05646252]
[1741719889600,7.91585301,127.21,127.18,0.05646252]
[1741719889799,0.05315301,127.21,127.18,0.05646252]
[1741719890797,7.8633,127.2,127.18,0.05646252]
[1741719891202,7.8635,127.2,127.18,0.05646252]
[1741719891404,0.05315301,127.21,127.18,0.05646252]
[1741719893398,7.8634,127.2,127.18,0.05646252]
[1741719894106,0.05315301,127.21,127.18,0.05646252]
[1741719894704,7.8634,127.2,127.18,0.05646252]
[1741719894905,0.05315301,127.21,127.18,0.05646252]
[1741719896506,0.05315301,127.21,127.2,7.863]
[1741719896901,0.05315301,127.21,127.2,46.383]
[1741719897909,19.65,127.22,127.21,7.8624]
[1741719898303,27.58,127.24,127.21,2.36]
[1741719898510,27.58,127.24,127.23,7.8611]
[1741719899804,27.58,127.24,127.22,0.05687859]
[1741719900414,27.58,127.24,127.23,7.8611]
[1741719900608,27.58,127.24,127.22,0.05687859]
[1741719900808,27.58,127.24,127.22,38.57687859]
[1741719901008,8.55822161,127.24,127.22,40.93687859]
[1741719901208,0.05517279,127.25,127.23,28.82676633]
[1741719901412,0.05517279,127.25,127.24,7.8605]
[1741719902013,0.05517279,127.25,127.23,7.8611]
[1741719902311,0.05517279,127.25,127.22,0.05687859]
[1741719902507,0.05517279,127.25,127.23,38.5]
[1741719903514,0.05517279,127.25,127.24,7.8605]
[1741719903718,9.11,127.28,127.24,28.82676633]
[1741719903905,9.11,127.28,127.24,218.82676633]
[1741719904111,9.11,127.28,127.27,7.8587]
[1741719904315,9.11,127.28,127.27,64.34799032]
[1741719904514,7.8547,127.34,127.27,56.48929032]
[1741719904723,7.8551,127.33,127.27,56.48929032]
[1741719904914,0.05620279,127.32,127.29,0.05452093]
[1741719905120,0.05620279,127.32,127.29,18.04381125]
[1741719905317,2.79e-06,127.32,127.31,25.84549032]
[1741719905511,2.79e-06,127.32,127.31,64.32549032]
[1741719905919,26.88021885,127.4,127.36,7.853]
[1741719906114,19.02891885,127.4,127.35,38.48]
[1741719906411,7.8533,127.36,127.32,38.48]
[1741719906611,28.75391356,127.39,127.32,38.48]
[1741719906816,9.11,127.38,127.32,38.48]
[1741719907017,0.05157144,127.37,127.34,0.05584584]
[1741719907217,28.75391356,127.36,127.27,190.0]
[1741719907414,3.9733,127.35,127.27,38.48]
[1741719907619,28.75391356,127.33,127.27,38.48]
[1741719908419,0.05953342,127.31,127.29,0.05767205]
[1741719908612,0.05953342,127.31,127.24,38.48]
[1741719908812,7.91583342,127.31,127.26,7.8592]
[1741719909121,0.05953342,127.31,127.24,38.48]
[1741719909316,7.8579,127.29,127.24,38.48]
[1741719909520,0.05953342,127.31,127.24,38.48]
[1741719909822,0.0573641,127.29,127.25,0.05396488]
[1741719910513,0.0573641,127.29,127.26,7.8589]
[1741719910712,0.0573641,127.29,127.25,0.05396488]
[1741719912721,0.0573641,127.29,127.26,7.8592]
[1741719913024,0.0573641,127.29,127.25,0.05396488]
[1741719913324,0.0573641,127.29,127.28,7.8581]
[1741719913628,0.0573641,127.29,127.28,38.48]
[1741719913814,0.0573641,127.29,127.28,46.3381]
[1741719915025,6.41e-05,127.29,127.28,46.3381]
[1741719915225,16.63,127.32,127.31,7.8562]
[1741719915525,7.61,127.37,127.28,67.23391356]
[1741719915725,7.8536,127.36,127.33,7.8549]
[1741719916028,7.61,127.37,127.32,38.46]
[1741719916321,7.61,127.37,127.32,67.21391356]
[1741719916527,0.05413056,127.36,127.33,0.05870519]
[1741719916829,0.05413056,127.36,127.35,7.8537]
[1741719917624,0.05413056,127.36,127.33,0.05870519]
[1741719918127,3.056e-05,127.36,127.35,7.8537]
[1741719918922,3.056e-05,127.38,127.33,0.05870519]
[1741719919126,3.056e-05,127.38,127.33,0.17410519]
[1741719919427,3.056e-05,127.38,127.35,7.8533]
[1741719919628,3.056e-05,127.38,127.36,38.46]
[1741719920029,0.05534021,127.38,127.37,7.8525]
[1741719920831,4.021e-05,127.38,127.37,7.8525]
[1741719921726,118.83333529,127.51,127.37,192.36]
[1741719921925,51.38327542,127.5,127.41,28.75391356]
[1741719922126,51.38327542,127.5,127.47,7.846]
[1741719922334,51.38327542,127.5,127.47,46.286]
[1741719922529,8.0672,127.5,127.47,38.44]
[1741719922730,8.0672,127.5,127.47,0.05118272]
[1741719922920,8.0672,127.5,127.37,0.2281]
[1741719922921,28.75391356,127.48,127.4,38.44]
[1741719923125,28.75391356,127.45,127.37,38.44]
[1741719923325,8.2468,127.44,127.37,38.44]
[1741719923730,8.2468,127.44,127.38,7.8517]
[1741719924028,0.05972055,127.42,127.39,0.05798399]
[1741719924325,0.05972055,127.42,127.4,7.8507]
[1741719924531,0.05972055,127.42,127.39,0.05798399]
[1741719927723,0.05972055,127.42,127.39,7.90888399]
[1741719928132,4.28402055,127.42,127.39,0.05798399]
[1741719928331,4.28402055,127.42,127.39,7.90888399]
[1741719928535,4.28402055,127.42,127.39,0.05798399]
[1741719930035,4.28402055,127.42,127.4,7.8506]
[1741719930532,0.05972055,127.42,127.39,0.05798399]
[1741719930736,0.05972055,127.42,127.41,7.85]
[1741719931039,0.05972055,127.42,127.41,38.42]
[1741719931238,7.90912055,127.42,127.41,38.42]
[1741719931537,0.05972055,127.42,127.41,38.42]
[1741719932237,0.05972055,127.42,127.39,0.05798399]
[1741719932441,7.8507,127.4,127.39,0.05798399]
[1741719933944,0.05972055,127.42,127.39,0.05798399]
[1741719934549,7.8506,127.41,127.39,0.05798399]
[1741719934745,0.05972055,127.42,127.4,7.8501]
[1741719935041,0.05972055,127.42,127.4,38.4]
[1741719936046,0.05972055,127.42,127.39,0.05798399]
[1741719936547,0.05972055,127.42,127.39,7.90888399]
[1741719936849,0.05972055,127.42,127.39,0.05798399]
[1741719937247,0.05972055,127.42,127.41,7.85]
[1741719937647,0.05972055,127.42,127.41,38.4]
[1741719937847,0.05972055,127.42,127.41,46.25]
[1741719938248,0.05972055,127.42,127.41,38.4]
[1741719938445,7.90912055,127.42,127.41,38.4]
[1741719938646,0.05972055,127.42,127.39,0.05798399]
[1741719938851,7.8504,127.41,127.39,0.05798399]
[1741719939158,0.05972055,127.42,127.39,0.05798399]
[1741719939356,7.8507,127.4,127.39,0.05798399]
[1741719939556,0.05972055,127.42,127.39,0.05798399]
[1741719939953,7.8507,127.4,127.39,0.05798399]
[1741719940759,28.81363411,127.42,127.31,3.9452]
[1741719940959,28.75391356,127.42,127.33,38.4]
[1741719941758,0.05848789,127.39,127.36,0.05323585]
[1741719942259,7.8519,127.38,127.36,0.05323585]
[1741719942653,0.05848789,127.39,127.38,7.8519]
[1741719942958,0.05848789,127.39,127.36,0.05323585]
[1741719943154,0.05848789,127.39,127.37,7.8522]
[1741719943651,0.05848789,127.39,127.36,0.05323585]
[1741719943858,7.8522,127.38,127.36,0.05323585]
[1741719944058,0.05848789,127.39,127.36,0.05323585]
[1741719945656,28.81240145,127.39,127.26,10.63726899]
[1741719945856,28.75391356,127.36,127.26,18.49626899]
[1741719946161,28.75391356,127.33,127.26,42.54907596]
[1741719946356,4.1469,127.32,127.26,42.54907596]
[1741719946852,0.0601665,127.3,127.28,0.05909746]
[1741719947254,0.0601665,127.3,127.28,38.45909746]
[1741719947455,0.0601665,127.3,127.29,7.8574]
[1741719947658,0.0601665,127.3,127.28,38.45909746]
[1741719948049,0.0601665,127.3,127.28,0.05909746]
[1741719949659,7.8574,127.29,127.28,0.05909746]
[1741719949850,0.0601665,127.3,127.25,38.4]
[1741719950054,0.0601665,127.3,127.24,38.4]
[1741719950358,4.0964,127.31,127.24,46.2601]
[1741719950759,4.0964,127.31,127.24,38.4]
[1741719951053,7.8585,127.28,127.26,0.05080946]
[1741719951458,0.05852068,127.29,127.26,0.05080946]
[1741719951659,4.2038,127.28,127.26,0.05080946]
[1741719951857,7.8587,127.27,127.26,0.05080946]
[1741719952353,4.2038,127.28,127.26,0.05080946]
[1741719952960,4.2038,127.28,127.2,7.8628]
[1741719952961,7.8606,127.24,127.2,7.8628]
[1741719953258,28.75391356,127.26,127.18,38.4]
[1741719953459,7.8615,127.23,127.18,38.4]
[1741719953659,28.75391356,127.26,127.18,38.4]
[1741719953856,28.75391356,127.26,127.16,42.54907596]
[1741719954057,0.05347885,127.23,127.21,0.050819]
[1741719955363,7.858,127.29,127.22,38.4]
[1741719955562,35.5129,127.3,127.22,38.4]
[1741719956365,35.5129,127.3,127.26,7.8589]
[1741719956366,0.05341819,127.27,127.26,7.8589]
[1741719956860,0.05341819,127.27,127.25,0.05560891]
[1741719958163,7.8593,127.26,127.25,0.05560891]
[1741719958665,259.31341819,127.27,127.2,38.4]
[1741719958863,3.955,127.26,127.2,38.4]
[1741719959064,7.8606,127.24,127.21,7.8623]
[1741719959259,3.955,127.26,127.21,7.8623]
[1741719959464,3.955,127.26,127.17,8.1891]
[1741719959659,3.955,127.26,127.18,38.4]
[1741719959859,0.05569343,127.23,127.2,0.04868894]
[1741719960064,0.05569343,127.23,127.21,7.862]
[1741719960265,0.05569343,127.23,127.2,0.04868894]
[1741719960657,28.75391356,127.38,127.2,0.04868894]
[1741719960658,259.3,127.33,127.2,57.55651606]
[1741719960867,31.28,127.3,127.24,28.75391356]
[1741719961062,31.28,127.3,127.25,38.4]
[1741719961262,39.1373,127.3,127.25,38.4]
[1741719961464,31.28,127.3,127.25,38.4]
[1741719961660,39.1372,127.3,127.25,38.4]
[1741719961866,0.05470939,127.29,127.26,0.05463942]
[1741719962861,7.91240939,127.29,127.26,7.91363942]
[1741719963060,0.05470939,127.29,127.26,0.05463942]
[1741719963265,7.8587,127.27,127.26,0.05463942]
[1741719964168,7.8597,127.26,127.22,38.4]
[1741719964370,4.1094,127.28,127.25,7.8599]
[1741719964569,4.1094,127.28,127.22,38.4]
[1741719964765,4.145,127.29,127.22,38.4]
[1741719965169,4.145,127.29,127.2,28.75391356]
[1741719965370,0.05964413,127.27,127.24,0.04974295]
[1741719965666,7.8593,127.26,127.24,0.04974295]
[1741719965867,0.05964413,127.27,127.25,38.4]
[1741719966168,0.05964413,127.27,127.26,7.8593]
[1741719966371,0.05964413,127.27,127.25,38.4]
[1741719966564,0.05964413,127.27,127.25,46.2594]
[1741719966864,0.05964413,127.27,127.25,38.4]
[1741719967771,0.05964413,127.27,127.25,46.2596]
[1741719968072,0.05964413,127.27,127.25,38.4]
[1741719968474,0.05964413,127.27,127.24,0.04974295]
[1741719969572,7.8599,127.25,127.24,0.04974295]
[1741719970168,7.8637,127.19,127.11,190.0]
[1741719970367,4.0627,127.24,127.12,11.9211]
[1741719970673,4.0627,127.24,127.13,38.38]
[1741719970973,3.8387,127.23,127.13,38.38]
[1741719971173,3.8387,127.23,127.15,7.8656]
[1741719971374,7.92376479,127.19,127.15,7.8656]
[1741719971871,0.05966479,127.19,127.13,38.38]
[1741719972172,0.05966479,127.19,127.14,38.4]
[1741719972768,0.05966479,127.19,127.14,67.15391356]
[1741719972969,259.32,127.25,127.21,7.862]
[1741719973170,259.32,127.25,127.21,38.4]
[1741719974076,7.92082427,127.24,127.22,0.05086514]
[1741719974278,0.06012427,127.24,127.22,0.05086514]
[1741719974678,0.06012427,127.24,127.08,236.26461356]
[1741719974879,259.32,127.25,127.15,38.38]
[1741719975082,259.32,127.25,127.2,7.8629]
[1741719975275,259.32,127.25,127.15,38.38]
[1741719975676,7.8618,127.22,127.18,7.8642]
[1741719975976,0.05918321,127.21,127.19,38.38]
[1741719976178,0.05918321,127.21,127.2,7.863]
[1741719978486,259.32,127.25,127.24,7.8605]
[1741719978779,259.32,127.25,127.23,38.38]
[1741719978981,259.32,127.25,127.23,46.2411]
[1741719979279,1.36776324,127.33,127.23,46.2411]
[1741719979280,259.38,127.31,127.23,67.13391356]
[1741719979479,259.38,127.31,127.23,38.38]
[1741719979680,0.05350929,127.28,127.26,0.05814742]
[1741719981781,0.05350929,127.28,127.26,7.91714742]
[1741719981975,0.05350929,127.28,127.26,0.05814742]
[1741719983088,7.8587,127.27,127.26,0.05814742]
[1741719983381,0.05350929,127.28,127.26,0.05814742]
[1741719983586,0.05350929,127.28,127.27,38.38]
[1741719983781,12.3889,127.36,127.27,38.38]
[1741719983978,12.3889,127.36,127.28,28.75391356]
[1741719984286,8.4356,127.36,127.28,37.04171356]
[1741719984488,8.4356,127.36,127.32,7.8552]
[1741719984784,8.4356,127.36,127.32,46.2152]
[1741719984981,0.05119963,127.35,127.33,0.05226455]
[1741719985787,7.8544,127.34,127.33,0.05226455]
[1741719986088,0.05119963,127.35,127.33,0.05226455]
[1741719986789,0.05119963,127.35,127.33,7.90696455]
[1741719987179,0.05119963,127.35,127.33,0.05226455]
[1741719987487,0.05119963,127.35,127.34,46.2144]
[1741719988195,3.9533,127.4,127.37,7.8521]
[1741719988489,3.9533,127.4,127.34,38.36]
[1741719989386,0.05363375,127.38,127.37,7.852]
[1741719989587,0.05363375,127.38,127.36,0.06035298]
[1741719990985,0.05363375,127.38,127.37,7.8525]
[1741719991892,259.3,127.44,127.37,2.36]
[1741719992099,267.4858,127.5,127.38,67.09391356]
[1741719992287,271.7142,127.5,127.43,7.8482]
[1741719992592,271.7142,127.5,127.43,38.34]
[1741719992792,7.8461,127.48,127.44,7.8478]
[1741719992986,7.89884128,127.48,127.45,0.05447816]
[1741719993188,0.05274128,127.48,127.45,0.05447816]
[1741719994591,28.80665484,127.48,127.39,7.851]
[1741719994792,28.75391356,127.48,127.4,38.32]
[1741719995186,7.8492,127.43,127.4,38.32]
[1741719995589,28.75391356,127.48,127.4,38.32]
[1741719995889,0.0545602,127.43,127.4,38.32]
[1741719996290,0.0545602,127.43,127.4,38.37800212]
[1741719996684,0.0545602,127.43,127.41,7.8496]
[1741719996881,0.0545602,127.43,127.4,38.37800212]
[1741719998093,7.9035602,127.43,127.4,38.37800212]
[1741719998488,0.0545602,127.43,127.4,38.37800212]
[1741719998688,0.0545602,127.43,127.41,7.8497]
[1741719998887,0.0545602,127.43,127.4,38.37800212]
[1741719999091,7.85,127.41,127.4,38.37800212]
[1741719999396,7.85,127.41,127.4,0.05800212]
[1741720001892,0.0545602,127.43,127.4,0.05800212]
[1741720002098,7.85,127.41,127.4,0.05800212]
[1741720002293,0.0545602,127.43,127.4,0.05800212]
[1741720003997,7.9033602,127.43,127.4,7.90830212]
[1741720004196,0.0545602,127.43,127.4,0.05800212]
[1741720005896,7.85,127.41,127.4,0.05800212]
[1741720006094,259.06,127.42,127.34,38.28]
[1741720006298,8.066,127.46,127.35,38.28]
[1741720006487,8.066,127.46,127.39,7.8509]
[1741720006689,8.066,127.46,127.39,38.28]
[1741720007296,0.0598908,127.44,127.41,0.04956971]
[1741720007697,0.0598908,127.44,127.43,7.8488]
[1741720008397,0.0598908,127.44,127.43,46.1288]
[1741720008595,0.00188868,127.44,127.43,46.1288]
[1741720010693,54.37,127.47,127.46,7.847]
[1741720011101,54.37,127.47,127.43,38.28]
[1741720011700,0.05436246,127.46,127.45,7.8471]
[1741720012405,48.00196246,127.47,127.44,0.05582022]
[1741720012605,48.00196246,127.47,127.46,7.847]
[1741720012606,25.14,127.47,127.46,7.847]
[1741720012797,259.0,127.54,127.46,28.75391356]
[1741720013000,4.0385,127.55,127.53,7.8427]
[1741720013194,9.26388061,127.61,127.53,38.26]
[1741720013397,7.84,127.58,127.53,38.26]
[1741720013600,7.8988,127.61,127.58,7.8391]
[1741720013798,4.0385,127.61,127.57,38.26]
[1741720013996,0.0565927,127.6,127.57,38.26]
[1741720014598,7.8392,127.59,127.57,38.26]
[1741720014800,7.8392,127.59,127.56,0.05547563]
[1741720015002,0.0565927,127.6,127.56,0.05547563]
[1741720017297,0.0565927,127.6,127.57,28.75391356]
[1741720017502,16.32,127.66,127.62,7.8366]
[1741720017705,16.32,127.66,127.62,38.24]
[1741720018099,16.32,127.66,127.63,7.8361]
[1741720018405,16.32,127.66,127.62,38.24]
[1741720018604,16.378858,127.66,127.63,0.05195571]
[1741720019498,7.874758,127.66,127.63,0.05195571]
[1741720020002,0.058858,127.66,127.63,0.05195571]
[1741720022093,0.058858,127.66,127.64,28.75391356]
[1741720022298,5.8e-05,127.66,127.65,7.8353]
[1741720023496,5.8e-05,127.66,127.64,28.75391356]
[1741720023497,5.8e-05,127.66,127.64,38.2]
[1741720026294,5.8e-05,127.66,127.65,7.8353]
[1741720026598,5.8e-05,127.67,127.65,28.75391356]
[1741720026795,5.8e-05,127.67,127.66,7.8347]
[1741720028506,2.552e-05,127.68,127.67,7.8341]
[1741720029408,2.552e-05,127.68,127.64,228.2]
[1741720029801,2.552e-05,127.68,127.65,7.89359702]
[1741720029997,2.552e-05,127.68,127.65,0.05869702]
[1741720030407,2.552e-05,127.68,127.66,7.8343]
[1741720030802,7.83352552,127.68,127.65,0.05869702]
[1741720031008,2.552e-05,127.68,127.65,0.05869702]
[1741720032006,2.552e-05,127.68,127.57,190.22]
[1741720032204,8.35962552,127.68,127.57,0.22]
[1741720032508,8.3596,127.68,127.58,38.16]
[1741720032711,8.3596,127.68,127.59,38.16]
[1741720033009,28.75391356,127.66,127.59,38.16]
[1741720033305,0.05738196,127.65,127.53,28.75391356]
[1741720033608,28.75391356,127.63,127.51,38.16]
[1741720033906,4.0289,127.62,127.51,38.16]
[1741720034106,262.5889,127.62,127.51,38.16]
[1741720034308,4.1785,127.61,127.51,38.16]
[1741720034810,2.981e-05,127.57,127.55,28.81245316]
[1741720035013,2.981e-05,127.57,127.56,38.16]
[1741720035197,7.9905,127.67,127.56,38.16]
[1741720036103,0.0513869,127.63,127.6,0.05141471]
[1741720036607,7.8375,127.62,127.6,0.05141471]
[1741720036802,0.0513869,127.63,127.6,0.05141471]
[1741720038015,7.8386,127.6,127.57,38.16]
[1741720038603,28.75391356,127.62,127.49,190.0]
[1741720038805,4.1395,127.59,127.51,38.16]
[1741720039009,3.9366,127.61,127.51,38.16]
[1741720039314,6.569e-05,127.56,127.54,28.80691631]
[1741720039514,4.1395,127.64,127.62,7.8366]
[1741720039807,4.1395,127.64,127.59,38.16]
[1741720040607,0.05290208,127.63,127.6,0.0574005]
[1741720040803,7.88980208,127.63,127.6,0.0574005]
[1741720041208,0.05290208,127.63,127.6,7.8955005]
[1741720041408,0.05290208,127.63,127.6,0.0574005]
[1741720041805,0.05290208,127.63,127.62,7.8371]
[1741720042008,0.05290208,127.63,127.6,0.0574005]
[1741720043005,0.05290208,127.63,127.61,7.8372]
[1741720043409,0.05290208,127.63,127.6,0.0574005]
[1741720043610,1.36387686,127.69,127.61,38.14]
[1741720043817,3.9196,127.72,127.63,28.75391356]
[1741720044804,0.05574217,127.69,127.66,0.05292633]
[1741720045010,0.05574217,127.69,127.66,38.19292633]
[1741720045205,7.8341,127.67,127.66,0.05292633]
[1741720045513,0.05574217,127.69,127.66,0.05292633]
[1741720045712,7.8341,127.67,127.66,0.05292633]
[1741720045913,7.8341,127.67,127.63,38.14]
[1741720046114,296.74,127.69,127.59,38.14]
[1741720047009,296.74,127.69,127.63,0.05265939]
[1741720047010,0.0508318,127.65,127.63,0.05265939]
[1741720048521,0.0508318,127.65,127.63,38.19265939]
[1741720048819,0.0508318,127.65,127.64,7.8359]
[1741720049119,0.0508318,127.65,127.63,38.19265939]
[1741720049426,0.0508318,127.65,127.64,7.8359]
[1741720051217,0.0508318,127.65,127.63,46.02895939]
[1741720051420,7.82,127.74,127.63,40.55265939]
[1741720051622,7.82,127.74,127.68,46.55512823]
[1741720051822,7.82,127.74,127.69,38.14]
[1741720052230,7.82,127.74,127.71,7.8313]
[1741720052520,0.05973713,127.74,127.71,0.05043884]
[1741720053719,3.713e-05,127.74,127.71,46.60556707]
[1741720054124,3.713e-05,127.75,127.71,46.60556707]
[1741720054322,3.713e-05,127.75,127.74,54.38492823]
[1741720054529,10.82901885,127.8,127.74,131.23025646]
[1741720054723,8.0059,127.84,127.74,84.67512823]
[1741720054925,46.55512823,127.8,127.71,228.12]
[1741720055127,4.2761,127.79,127.71,38.12]
[1741720055427,0.05108414,127.77,127.74,7.88641039]
[1741720055723,0.05108414,127.77,127.74,0.05681039]
[1741720058231,0.05108414,127.77,127.76,54.38362823]
[1741720058424,0.05108414,127.77,127.76,92.48362823]
[1741720058620,8.414e-05,127.77,127.76,92.48362823]
[1741720058823,8.0059,127.84,127.76,276.99512823]
[1741720059026,4.0765,127.84,127.79,46.55512823]
[1741720059224,4.0765,127.84,127.8,38.1]
[1741720059624,258.52,127.86,127.83,7.8239]
[1741720059825,258.52,127.86,127.8,38.1]
[1741720060025,262.52987909,127.86,127.83,0.05947028]
[1741720060221,7.8236,127.84,127.83,0.05947028]
[1741720060425,7.8236,127.84,127.8,38.1]
[1741720060426,4.2308,127.85,127.8,38.1]
[1741720060827,7.8239,127.84,127.8,38.1]
[1741720061026,7.8239,127.84,127.79,45.9266]
[1741720061223,4.2308,127.85,127.79,38.1]
[1741720061424,4.2308,127.85,127.81,0.0577474]
[1741720061630,0.05402413,127.83,127.81,0.0577474]
[1741720063435,7.8249,127.82,127.81,0.0577474]
[1741720064231,0.05402413,127.83,127.81,0.0577474]
[1741720065227,0.05402413,127.83,127.82,7.8249]
[1741720065437,0.05402413,127.83,127.81,0.0577474]
[1741720065937,7.8249,127.82,127.81,0.0577474]
[1741720067240,0.05402413,127.83,127.81,0.0577474]
[1741720067737,0.05402413,127.83,127.82,7.8249]
[1741720069038,0.05402413,127.83,127.81,0.0577474]
[1741720069843,0.05402413,127.83,127.69,448.4]
[1741720070139,309.03552823,127.86,127.75,46.55512823]
[1741720070339,3.9604,127.86,127.74,46.55512823]
[1741720070739,3.9604,127.86,127.75,38.06]
[1741720071035,0.05176543,127.81,127.8,7.826]
[1741720071241,3.9604,127.86,127.8,45.886]
[1741720071436,0.05365319,127.82,127.8,38.06]
[1741720071638,5.319e-05,127.82,127.8,38.06]
[1741720071835,7.81,127.89,127.8,274.67100934]
[1741720072036,43.31607542,128.06,127.8,274.67100934]
[1741720072037,7.981,127.97,127.87,46.55512823]
[1741720072240,301.57607542,128.06,127.91,46.55512823]
[1741720072444,3.9443,128.04,127.94,46.55512823]
[1741720072743,301.57607542,128.06,127.97,46.55512823]
[1741720072932,301.57607542,128.06,127.99,7.8144]
[1741720073135,0.05616292,128.03,128.0,38.11060675]
[1741720074737,0.05616292,128.03,128.0,0.05060675]
[1741720075344,0.05616292,128.03,127.97,38.04]
[1741720075641,46.55512823,128.01,127.94,38.04]
[1741720075833,8.192,128.0,127.91,38.04]
[1741720076037,46.232,128.0,127.91,38.04]
[1741720076441,0.05164822,127.97,127.92,46.55512823]
[1741720076635,0.05164822,127.97,127.95,46.55512823]
[1741720076842,192.0,128.12,127.96,38.02]
[1741720077145,3.941,128.07,127.98,46.55512823]
[1741720077644,305.95463599,128.13,127.98,46.55512823]
[1741720077843,8.0568,128.11,127.98,46.55512823]
[1741720078045,0.0565517,128.05,128.02,0.05368991]
[1741720078245,0.0565517,128.05,128.03,38.12]
[1741720078438,0.0565517,128.05,128.04,7.8114]
[1741720078639,0.0565517,128.05,128.03,38.12]
[1741720079441,0.0565517,128.05,128.02,0.05368991]
[1741720080149,7.8675517,128.05,128.02,0.05368991]
[1741720080347,4.0706,128.04,127.99,38.52]
[1741720081045,4.243,128.03,127.99,38.52]
[1741720081246,0.0565517,128.05,128.01,46.55512823]
[1741720081445,32.69,128.09,128.04,93.11025646]
[1741720081645,32.69,128.09,128.05,46.5106]
[1741720081839,32.69,128.09,128.01,46.55512823]
[1741720082043,46.55512823,128.13,128.02,38.78]
[1741720082247,46.55512823,128.1,127.99,38.82]
[1741720082441,262.0358,128.09,128.0,46.55512823]
[1741720082646,0.04938424,128.06,128.04,7.8114]
[1741720082948,0.04938424,128.06,128.04,38.96]
[1741720083738,0.04938424,128.06,128.05,7.8108]
[1741720083943,8.424e-05,128.06,128.05,7.8108]
[1741720084746,8.424e-05,128.06,128.05,39.42]
[1741720084948,8.424e-05,128.06,128.03,46.61192369]
[1741720085148,8.424e-05,128.06,128.04,39.44]
[1741720087046,8.424e-05,128.06,128.05,7.8108]
[1741720087939,8.424e-05,128.06,128.04,39.44]
[1741720088144,8.424e-05,128.06,128.03,0.05679546]
[1741720088852,8.424e-05,128.06,127.99,39.74]
[1741720089046,8.424e-05,128.06,127.99,47.5543]
[1741720089446,8.424e-05,128.06,127.96,39.88]
[1741720089646,265.57,128.07,128.0,7.8138]
[1741720090049,0.04966706,128.05,128.02,0.05618101]
[1741720090255,0.04966706,128.05,128.0,7.8138]
[1741720090256,39.88966706,128.05,128.0,7.8138]